bitfinex/quotes_ETHUSD_20250806
["timestamp","ask_amount","ask_price","bid_price","bid_amount"]
[1754456471519,0.04,3574.9,3574.8,6.41985929]
[1754456471744,0.04,3574.9,3574.8,6.55985929]
[1754456472084,0.04,3574.9,3574.8,7.1196365]
[1754456472224,0.04,3574.9,3574.8,6.4971365]
[1754456472429,0.535,3574.9,3574.8,10.7741365]
[1754456472847,0.535,3574.9,3574.8,6.4971365]
[1754456473141,0.04,3574.9,3574.8,6.4971365]
[1754456473334,0.04,3574.9,3574.8,10.7741365]
[1754456473519,0.04,3574.9,3574.8,11.3966365]
[1754456475359,0.04,3574.9,3574.8,10.7741365]
[1754456476641,0.04,3574.9,3574.8,6.4971365]
[1754456478290,4.246,3575.3,3575.1,3.0]
[1754456478503,0.001,3575.4,3575.3,2.79696808]
[1754456478670,0.001,3575.4,3575.3,29.72819096]
[1754456478859,0.001,3575.4,3575.3,30.35069096]
[1754456480594,0.001,3575.4,3575.3,31.19035096]
[1754456480891,0.001,3575.4,3575.3,33.90173384]
[1754456482497,1e-08,3575.4,3575.3,38.72873384]
[1754456483497,1e-08,3575.4,3575.3,38.36403384]
[1754456483658,1e-08,3575.4,3575.3,38.72873384]
[1754456483865,0.04,3575.9,3575.8,2.79657698]
[1754456484103,0.4615,3576.6,3576.2,2.79626419]
[1754456484391,0.001,3576.6,3576.5,2.79602963]
[1754456484601,0.001,3576.6,3576.5,7.17202963]
[1754456485402,0.4615,3576.6,3576.5,7.17202963]
[1754456485602,0.9174,3576.6,3576.5,7.17202963]
[1754456486098,0.9174,3576.6,3576.5,4.236]
[1754456486308,0.9174,3576.6,3576.5,7.03202963]
[1754456489976,0.001,3576.6,3576.5,9.76069149]
[1754456491301,0.001,3576.6,3576.5,12.76069149]
[1754456492379,0.4615,3576.6,3576.5,12.76069149]
[1754456492800,0.001,3576.6,3576.5,12.76069149]
[1754456493009,0.4615,3576.6,3576.5,12.76069149]
[1754456493707,0.9174,3576.6,3576.5,12.76069149]
[1754456493914,0.9174,3576.6,3576.5,7.03202963]
[1754456495199,5.1614,3576.6,3576.5,7.03202963]
[1754456496118,4.7055,3576.6,3576.5,7.03202963]
[1754456496287,5.1614,3576.6,3576.5,7.03202963]
[1754456497295,4.7055,3576.6,3576.5,7.03202963]
[1754456497918,0.001,3576.6,3576.5,7.03202963]
[1754456498123,0.001,3576.6,3576.5,9.90069149]
[1754456498422,0.001,3576.6,3576.5,12.90069149]
[1754456498916,0.4615,3576.6,3576.5,12.90069149]
[1754456499121,0.9174,3576.6,3576.5,12.90069149]
[1754456499478,0.9174,3576.6,3576.5,10.17202963]
[1754456500989,0.4615,3576.6,3576.5,10.17202963]
[1754456501688,0.9174,3576.6,3576.5,10.17202963]
[1754456502079,0.001,3576.6,3576.5,10.17202963]
[1754456502285,0.001,3576.7,3576.6,5.79595146]
[1754456502494,1e-08,3576.8,3576.7,5.79587329]
[1754456502901,1e-08,3576.8,3576.7,6.55837329]
[1754456503431,1e-08,3576.8,3576.7,7.10837329]
[1754456503582,1e-08,3576.9,3576.8,3.34579512]
[1754456503786,1e-08,3576.9,3576.8,8.21029512]
[1754456504023,1e-08,3576.9,3576.8,9.09370663]
[1754456505019,1e-08,3577.1,3577.0,2.7956388]
[1754456505319,1e-08,3577.1,3577.0,33.96886168]
[1754456505516,1e-08,3577.1,3577.0,34.22666168]
[1754456505718,1e-08,3577.1,3577.0,10.1776388]
[1754456505909,1e-08,3577.1,3577.0,36.45104441]
[1754456507517,1e-08,3577.1,3577.0,32.20904441]
[1754456508629,1e-08,3577.1,3577.0,36.44504441]
[1754456510525,1e-08,3577.1,3577.0,37.06754441]
[1754456511928,1e-08,3577.1,3577.0,36.44504441]
[1754456514430,1e-08,3577.1,3577.0,36.99504441]
[1754456515235,1e-08,3577.1,3577.0,37.61754441]
[1754456517809,1e-08,3577.1,3577.0,36.99504441]
[1754456518445,0.47480001,3577.1,3577.0,36.44504441]
[1754456518646,0.91520001,3577.1,3577.0,40.68404441]
[1754456519012,0.91520001,3577.1,3577.0,39.84478841]
[1754456519609,0.91520001,3577.1,3577.0,35.60578841]
[1754456519809,0.91520001,3577.1,3577.0,39.84478841]
[1754456520310,0.91520001,3577.1,3577.0,35.60578841]
[1754456520510,0.91520001,3577.1,3577.0,39.84378841]
[1754456520710,0.91520001,3577.1,3577.0,35.60578841]
[1754456521707,1e-08,3577.1,3577.0,35.60578841]
[1754456522442,0.47480001,3577.1,3577.0,35.60578841]
[1754456522956,1e-08,3577.1,3577.0,35.60578841]
[1754456524059,0.001,3577.4,3577.3,6.55660434]
[1754456524233,0.001,3577.4,3577.3,9.55660434]
[1754456524434,0.001,3577.4,3577.3,9.69660434]
[1754456524633,0.4414,3577.4,3577.3,9.69660434]
[1754456526071,0.9162,3577.4,3577.3,9.69660434]
[1754456527837,0.001,3577.4,3577.3,10.2301402]
[1754456530243,0.001,3577.4,3577.3,14.4661402]
[1754456530451,0.001,3577.4,3577.3,14.9518402]
[1754456530668,0.001,3577.4,3577.3,14.4661402]
[1754456533273,0.4519,3577.4,3577.3,14.4661402]
[1754456533449,0.001,3577.4,3577.3,14.4661402]
[1754456535188,0.001,3577.4,3577.3,14.9600402]
[1754456535675,0.001,3577.6,3577.5,6.75919999]
[1754456535877,0.001,3577.6,3577.5,47.12178209]
[1754456536076,0.001,3577.7,3577.5,47.12178209]
[1754456536077,1e-08,3577.7,3577.6,2.79516994]
[1754456536264,1e-08,3577.7,3577.6,3.28906994]
[1754456536792,1e-08,3577.7,3577.6,7.04826993]
[1754456537593,1e-08,3577.7,3577.6,6.55436993]
[1754456537883,1e-08,3577.7,3577.6,8.05729666]
[1754456539495,0.90300001,3577.7,3577.6,8.05729666]
[1754456539709,0.90300001,3577.7,3577.6,11.05729666]
[1754456539997,0.90300001,3577.7,3577.6,15.29129666]
[1754456540353,0.90300001,3577.7,3577.6,9.55436993]
[1754456542333,0.90300001,3577.7,3577.6,3.75919999]
[1754456542491,0.90300001,3577.7,3577.4,2.79527866]
[1754456542787,1.043,3577.6,3577.4,2.79527866]
[1754456543090,0.4509,3577.5,3577.3,2.79538298]
[1754456543254,0.903,3577.5,3577.3,2.79538298]
[1754456543655,0.14,3577.6,3577.4,2.79528528]
[1754456543860,0.14,3577.6,3577.5,2.79524807]
[1754456544256,1.043,3577.6,3577.5,2.79524807]
[1754456544589,1e-08,3577.7,3577.6,5.79516994]
[1754456544793,1e-08,3577.7,3577.6,6.28906994]
[1754456545293,1e-08,3577.7,3577.6,6.42906994]
[1754456546289,1e-08,3577.7,3577.6,10.66606994]
[1754456550580,0.041,3577.9,3577.8,9.55321367]
[1754456550775,0.041,3577.9,3577.8,16.51887553]
[1754456550980,0.041,3577.9,3577.8,17.01277553]
[1754456551394,0.041,3577.9,3577.8,16.65887553]
[1754456551593,0.041,3577.9,3577.8,17.15277553]
[1754456552710,1e-08,3577.9,3577.8,17.15277553]
[1754456553003,0.001,3578.3,3577.8,17.15277553]
[1754456553004,0.001,3578.3,3578.2,2.79470124]
[1754456553190,0.001,3578.3,3578.2,28.00437355]
[1754456554313,0.904,3578.3,3578.2,28.00437355]
[1754456554508,0.904,3578.3,3578.2,4.07315067]
[1754456554822,0.904,3578.3,3578.2,2.93470124]
[1754456554988,0.904,3578.3,3578.2,2.79470124]
[1754456555185,0.904,3578.3,3577.7,2.7950511]
[1754456555186,1.044,3578.3,3577.9,2.79488713]
[1754456555504,1.044,3578.3,3577.7,2.93508199]
[1754456555505,0.14,3578.1,3577.7,2.79503233]
[1754456555719,0.903,3578.0,3577.5,3.0]
[1754456555894,0.14,3577.8,3577.6,2.79516994]
[1754456556285,0.903,3577.7,3577.6,5.79516994]
[1754456557112,0.903,3577.7,3577.3,0.14]
[1754456557351,0.4521,3577.6,3577.4,2.79526325]
[1754456557478,1.043,3577.6,3577.4,2.79526325]
[1754456557899,0.903,3577.5,3577.4,2.79526325]
[1754456558209,0.14,3577.6,3577.5,2.79524807]
[1754456558611,0.4251,3578.3,3578.0,2.79478625]
[1754456558612,4.24,3578.1,3578.0,2.79478625]
[1754456558778,0.14,3578.0,3577.9,2.79491023]
[1754456559114,0.14,3578.0,3577.8,2.79498676]
[1754456559308,0.5909,3578.0,3577.8,2.79498676]
[1754456559481,1.043,3578.0,3577.9,2.79493557]
[1754456559884,1.043,3578.0,3577.8,2.79499625]
[1754456560191,0.903,3577.9,3577.8,2.79499625]
[1754456561331,0.4509,3577.9,3577.8,2.79499625]
[1754456561538,4.8321,3578.1,3578.0,2.79485746]
[1754456561832,5.283,3578.1,3578.0,2.79485746]
[1754456562132,5.284,3578.1,3578.0,2.79485746]
[1754456562328,0.4519,3578.1,3578.0,2.79485746]
[1754456562641,0.001,3578.1,3578.0,2.79485746]
[1754456562851,0.001,3578.1,3578.0,6.00341932]
[1754456563855,0.001,3578.1,3578.0,5.52351932]
[1754456564011,0.001,3578.1,3578.0,6.00341932]
[1754456564211,0.001,3578.1,3578.0,9.00341932]
[1754456564853,0.001,3578.1,3578.0,8.52351932]
[1754456565634,0.8901,3578.1,3578.0,5.79485746]
[1754456567235,0.8901,3578.1,3578.0,2.79485746]
[1754456567440,1.0301,3578.1,3578.0,2.79485746]
[1754456567951,0.5699,3578.1,3578.0,2.79485746]
[1754456568132,1.0301,3578.1,3578.0,2.79485746]
[1754456568436,1.0301,3578.1,3578.0,6.55305744]
[1754456569632,0.8901,3578.1,3578.0,6.55305744]
[1754456569833,0.001,3578.1,3578.0,6.55305744]
[1754456570630,0.8901,3578.1,3578.0,6.55305744]
[1754456571025,1.0301,3578.1,3578.0,6.55305744]
[1754456578445,1.0301,3578.1,3578.0,3.75819998]
[1754456578651,1.0301,3578.1,3577.7,3.75819998]
[1754456578951,0.14,3577.8,3577.7,2.79509181]
[1754456580749,0.001,3578.1,3578.0,2.79485746]
[1754456581936,0.001,3578.1,3578.0,6.27475746]
[1754456582256,0.001,3578.1,3578.0,6.63945746]
[1754456582422,0.001,3578.1,3578.0,10.88645746]
[1754456582621,0.001,3578.1,3578.0,12.54810766]
[1754456583443,0.001,3578.1,3578.0,12.18340766]
[1754456583956,0.001,3578.1,3578.0,5.79485746]
[1754456586055,0.001,3578.1,3578.0,9.55305744]
[1754456590354,0.8901,3578.1,3578.0,9.55305744]
[1754456591253,0.8901,3578.1,3578.0,6.55305744]
[1754456591678,0.8901,3578.1,3577.6,6.75819998]
[1754456591826,0.8901,3578.1,3577.6,2.79516994]
[1754456591827,0.14,3577.8,3577.6,2.79516994]
[1754456592160,0.8891,3577.7,3577.6,2.79516994]
[1754456592378,0.8891,3577.7,3577.6,5.79516994]
[1754456592745,0.8891,3577.7,3577.6,2.79516994]
[1754456596347,0.4289,3577.7,3577.6,6.55336992]
[1754456596547,0.001,3578.1,3578.0,2.79485746]
[1754456596735,0.141,3578.1,3578.0,2.79485746]
[1754456597767,1.0719,3578.1,3578.0,2.79485746]
[1754456598781,0.141,3578.1,3578.0,2.79485746]
[1754456598982,1.0719,3578.1,3578.0,2.79485746]
[1754456602586,4.384,3578.1,3578.0,2.79485746]
[1754456602765,4.244,3578.1,3578.0,2.79485746]
[1754456602969,0.001,3578.1,3578.0,3.77918793]
[1754456603495,0.001,3578.1,3578.0,3.29015746]
[1754456605482,0.001,3578.1,3578.0,2.79485746]
[1754456606893,0.001,3578.1,3578.0,6.55305744]
[1754456608671,0.001,3578.1,3578.0,7.04835744]
[1754456609400,0.001,3578.1,3578.0,7.55305744]
[1754456609958,0.001,3578.1,3578.0,10.2817193]
[1754456610586,0.001,3578.1,3578.0,9.9170193]
[1754456612101,0.4613,3578.1,3578.0,6.69305744]
[1754456612324,0.001,3578.1,3578.0,6.69305744]
[1754456612609,0.001,3578.1,3578.0,6.55305744]
[1754456613015,0.001,3578.1,3578.0,7.41305744]
[1754456613190,0.001,3578.1,3578.0,7.18835744]
[1754456613562,0.001,3578.1,3578.0,6.69305744]
[1754456615603,0.001,3578.1,3578.0,7.18835744]
[1754456615801,0.001,3578.1,3578.0,7.73976973]
[1754456617096,0.001,3578.1,3578.0,7.24446973]
[1754456617299,0.001,3578.1,3578.0,6.69305744]
[1754456617486,0.9319,3578.1,3578.0,6.69305744]
[1754456617994,0.001,3578.1,3578.0,6.69305744]
[1754456619290,0.001,3578.1,3578.0,7.18835744]
[1754456620700,0.001,3578.1,3578.0,10.18835744]
[1754456620904,0.001,3578.1,3578.0,17.5187193]
[1754456622905,1e-08,3578.1,3578.0,17.6305923]
[1754456624602,0.001,3578.3,3578.2,9.55290121]
[1754456624913,0.001,3578.3,3578.2,13.78990121]
[1754456625195,0.001,3578.3,3578.2,14.40480121]
[1754456625402,0.001,3578.3,3578.2,17.13346307]
[1754456626286,0.001,3578.3,3578.2,16.65856307]
[1754456626902,0.9321,3578.3,3578.2,12.42156307]
[1754456627604,0.9321,3578.3,3578.2,9.69290121]
[1754456628107,0.4366,3578.3,3578.2,9.69290121]
[1754456628310,0.001,3578.3,3578.2,9.69290121]
[1754456628821,0.001,3578.3,3578.2,10.16780121]
[1754456629496,0.001,3578.3,3578.2,13.92890121]
[1754456629688,0.001,3578.3,3578.2,16.63063326]
[1754456630312,0.001,3578.3,3578.2,17.10553326]
[1754456630832,0.001,3578.3,3578.2,16.63063326]
[1754456631269,0.9321,3578.3,3578.2,16.63063326]
[1754456633124,0.9321,3578.3,3578.2,12.39463326]
[1754456633319,0.001,3578.3,3578.2,12.39463326]
[1754456633538,0.001,3578.3,3578.2,12.86953326]
[1754456634142,0.001,3578.3,3578.2,12.39463326]
[1754456634448,0.001,3578.3,3578.2,12.86953326]
[1754456635353,0.001,3578.3,3578.2,36.89324772]
[1754456635520,0.001,3578.3,3578.2,41.12924772]
[1754456636331,0.001,3578.3,3578.2,48.21924772]
[1754456637966,0.001,3578.3,3578.2,41.12924772]
[1754456638355,0.001,3578.3,3578.2,41.49394772]
[1754456638530,0.001,3578.3,3578.2,41.12924772]
[1754456642264,0.001,3578.6,3578.5,6.55066692]
[1754456643235,0.001,3578.6,3578.5,6.69066692]
[1754456644656,0.9321,3578.6,3578.5,6.69066692]
[1754456649005,0.001,3578.6,3578.5,6.69066692]
[1754456650360,0.9321,3578.6,3578.5,6.69066692]
[1754456650694,0.4366,3578.6,3578.5,8.04109803]
[1754456650994,0.001,3578.6,3578.5,8.04109803]
[1754456652356,1e-08,3578.7,3578.6,9.55058883]
[1754456652599,1e-08,3578.7,3578.6,41.94202929]
[1754456652783,0.001,3579.3,3578.9,5.79415462]
[1754456652987,0.001,3579.3,3578.9,13.78335459]
[1754456653183,1e-08,3579.0,3578.9,14.41955459]
[1754456655500,1e-08,3579.0,3578.9,14.53140159]
[1754456658401,1e-08,3579.0,3578.9,14.03520159]
[1754456658601,1e-08,3579.0,3578.9,16.73693364]
[1754456661489,1e-08,3579.0,3578.9,17.23313364]
[1754456662092,1e-08,3579.0,3578.9,17.78313364]
[1754456662303,1e-08,3579.0,3578.9,18.14783364]
[1754456662612,1e-08,3579.0,3578.9,17.78313364]
[1754456667384,1e-08,3579.3,3579.2,3.34392042]
[1754456667724,1e-08,3579.3,3579.2,31.48776088]
[1754456667932,1e-08,3579.4,3579.3,2.79384237]
[1754456668133,0.9165,3579.8,3579.7,6.54973014]
[1754456668788,0.9165,3579.8,3579.7,6.68973014]
[1754456669291,0.001,3579.8,3579.7,6.68973014]
[1754456669789,0.001,3579.8,3579.7,9.68973014]
[1754456669991,0.001,3579.8,3579.7,9.89820846]
[1754456670290,0.001,3579.8,3579.7,11.72383921]
[1754456671391,0.4474,3580.1,3579.8,5.79345214]
[1754456671600,0.4474,3580.1,3579.8,10.02545214]
[1754456671823,0.4681,3580.2,3579.8,10.02545214]
[1754456672023,0.4681,3580.2,3579.8,10.86410914]
[1754456672324,0.4681,3580.1,3579.8,10.86410914]
[1754456672553,0.9155,3580.1,3579.8,10.86410914]
[1754456672704,0.4681,3580.0,3579.8,10.86410914]
[1754456673490,0.001,3580.2,3579.8,10.86410914]
[1754456673691,0.001,3580.2,3580.1,5.79321806]
[1754456674034,0.001,3580.2,3580.1,12.72695011]
[1754456674236,0.001,3580.2,3580.1,12.86695011]
[1754456674423,0.001,3580.2,3580.1,13.70554711]
[1754456674824,0.9165,3580.2,3580.1,13.70554711]
[1754456675144,0.9165,3580.2,3580.1,12.86695011]
[1754456677761,0.001,3580.2,3580.1,20.79554711]
[1754456678463,0.04,3580.9,3580.8,2.79267202]
[1754456678838,0.9555,3580.9,3580.8,2.79267202]
[1754456681233,0.9555,3580.9,3580.8,6.54887197]
[1754456681570,0.04,3580.9,3580.8,6.54887197]
[1754456681867,0.04,3580.9,3580.8,7.89930308]
[1754456682050,0.4874,3580.9,3580.8,7.89930308]
[1754456682369,0.9555,3580.9,3580.8,7.89930308]
[1754456682740,0.9555,3580.9,3580.8,10.89930308]
[1754456684476,0.04,3580.9,3580.8,41.90114354]
[1754456684776,0.04,3580.9,3580.8,46.59534354]
[1754456684978,1e-08,3580.9,3580.8,47.28534354]
[1754456685200,1e-08,3580.9,3580.8,47.65004354]
[1754456685403,1e-08,3580.9,3580.8,47.28534354]
[1754456685601,1e-08,3580.9,3580.8,47.65004354]
[1754456685992,1e-08,3580.9,3580.8,47.28534354]
[1754456689109,1e-08,3580.9,3580.8,48.12369154]
[1754456689605,0.4828,3581.3,3581.2,9.54856004]
[1754456689792,0.001,3581.3,3581.2,13.77856004]
[1754456690004,0.9407,3581.3,3581.2,9.68856004]
[1754456692064,0.001,3581.3,3581.2,15.29679079]
[1754456693248,0.9407,3581.3,3581.2,15.29679079]
[1754456694246,0.4589,3581.3,3581.2,15.29679079]
[1754456694413,0.9407,3581.3,3581.2,15.29679079]
[1754456695650,0.9407,3581.3,3581.2,22.38679079]
[1754456696034,0.9407,3581.3,3581.2,18.15679079]
[1754456696964,0.9407,3581.3,3581.2,16.77856004]
[1754456698761,0.9407,3581.3,3581.2,17.61690904]
[1754456699067,0.001,3581.3,3581.2,17.61690904]
[1754456699565,0.9407,3581.3,3581.2,17.61690904]
[1754456700886,0.001,3581.3,3581.2,17.61690904]
[1754456701178,0.001,3581.3,3581.2,20.08084513]
[1754456702238,0.001,3581.3,3581.2,17.61690904]
[1754456702438,0.9407,3581.3,3581.2,17.61690904]
[1754456703066,0.9407,3581.3,3581.2,16.77856004]
[1754456704851,0.001,3581.3,3581.2,16.77856004]
[1754456705295,0.001,3581.3,3581.2,9.68856004]
[1754456705583,5.2107,3581.9,3581.8,2.79189234]
[1754456706071,0.9797,3581.9,3581.8,2.93109234]
[1754456706463,0.04,3581.9,3581.8,2.93109234]
[1754456706663,0.04,3581.9,3581.8,5.93109234]
[1754456706866,0.04,3581.9,3581.8,6.39429234]
[1754456707064,0.04,3581.9,3581.8,13.87502439]
[1754456707269,0.001,3582.1,3582.0,2.79173646]
[1754456707472,0.001,3582.1,3582.0,34.09969428]
[1754456707640,0.001,3582.1,3582.0,34.53497692]
[1754456707840,0.001,3582.1,3582.0,36.54651861]
[1754456708372,0.001,3582.1,3582.0,37.09651861]
[1754456709278,0.001,3582.1,3582.0,36.73181861]
[1754456709457,0.9797,3582.9,3582.8,2.79111309]
[1754456710572,0.04,3582.9,3582.8,34.07115355]
[1754456710773,0.04,3582.9,3582.8,33.03401541]
[1754456711376,0.04,3582.9,3582.8,32.57081541]
[1754456712141,0.04,3582.9,3582.8,33.03401541]
[1754456712975,1e-08,3582.9,3582.8,33.58401541]
[1754456713179,1e-08,3582.9,3582.8,33.94871541]
[1754456715877,1e-08,3582.9,3582.8,34.78653441]
[1754456717742,0.04,3583.9,3583.8,5.79033428]
[1754456717980,0.04,3583.9,3583.8,10.73556771]
[1754456718879,0.04,3583.9,3583.8,11.28556771]
[1754456719296,0.04,3583.9,3583.8,11.49453734]
[1754456719469,1.00790453,3584.8,3584.1,2.79010072]
[1754456719675,0.04,3584.9,3584.8,2.7895559]
[1754456719869,0.04,3584.9,3584.8,2.9287559]
[1754456720391,0.9717,3584.9,3584.8,3.7662779]
[1754456720555,0.04,3584.9,3584.8,6.7662779]
[1754456720760,0.04,3584.9,3584.8,32.33538234]
[1754456721162,0.04,3584.9,3584.8,32.88538234]
[1754456722003,0.1792,3585.9,3585.8,2.78877795]
[1754456722498,0.9717,3585.9,3585.8,2.78877795]
[1754456723565,0.509,3585.9,3585.8,2.78877795]
[1754456723782,0.9717,3585.9,3585.8,2.78877795]
[1754456724085,0.04,3585.9,3585.8,10.01477795]
[1754456724285,0.04,3585.9,3585.8,11.44826302]
[1754456725505,0.04,3585.9,3585.8,10.15397795]
[1754456726920,0.04,3585.9,3585.8,10.60727795]
[1754456727275,0.04,3585.9,3585.8,11.15727795]
[1754456727809,0.9317,3586.3,3586.2,5.7884669]
[1754456728008,0.9317,3586.3,3586.2,10.0134669]
[1754456728576,0.47,3586.7,3586.6,2.78815591]
[1754456728801,0.001,3586.7,3586.6,2.78815591]
[1754456729077,0.001,3586.7,3586.6,2.92735591]
[1754456729292,0.9327,3586.7,3586.6,3.17685591]
[1754456729614,0.9327,3586.7,3586.6,6.17685591]
[1754456731079,0.001,3586.7,3586.6,7.49586648]
[1754456731410,0.001,3586.7,3586.6,7.94916648]
[1754456731618,0.001,3586.7,3586.6,7.49586648]
[1754456732179,0.001,3586.7,3586.6,7.94916648]
[1754456732379,0.001,3586.7,3586.6,8.49916648]
[1754456733294,0.2495,3586.8,3586.7,3.33807817]
[1754456733489,1e-08,3586.9,3586.8,3.33800044]
[1754456733701,1e-08,3586.9,3586.8,30.7031409]
[1754456734911,1e-08,3586.9,3586.8,30.2498409]
[1754456735100,1e-08,3586.9,3586.8,30.7031409]
[1754456735308,1e-08,3586.9,3586.8,32.45250131]
[1754456735695,1e-08,3586.9,3586.8,32.81720131]
[1754456736723,0.04,3587.9,3586.8,29.66450087]
[1754456736937,0.509,3587.9,3587.8,5.78722336]
[1754456737284,0.509,3587.9,3587.8,10.14942336]
[1754456737808,0.04,3587.9,3587.8,34.06126382]
[1754456738120,0.04,3587.9,3587.8,35.18063241]
[1754456738419,1e-08,3587.9,3587.8,35.63393241]
[1754456738785,1e-08,3587.9,3587.8,35.99863241]
[1754456739114,1e-08,3587.9,3587.8,36.14603286]
[1754456740021,0.1392,3589.7,3589.1,0.55]
[1754456740334,0.1392,3589.7,3589.6,5.78582571]
[1754456740544,2.78475967,3591.0,3589.8,2.78567051]
[1754456740833,0.1392,3590.4,3589.8,10.17287051]
[1754456741037,0.1392,3590.5,3589.8,10.17287051]
[1754456741329,0.469,3590.2,3589.8,10.17287051]
[1754456741483,0.509,3589.9,3589.8,10.17287051]
[1754456742119,0.04,3589.9,3589.8,10.31207051]
[1754456743083,0.04,3589.9,3589.8,10.77567051]
[1754456743522,0.04,3589.9,3589.8,11.66822013]
[1754456743836,0.5057,3589.9,3589.8,10.31207051]
[1754456744001,0.5057,3589.9,3589.8,10.31307051]
[1754456744205,0.5057,3589.9,3589.8,6.06407051]
[1754456744389,0.04,3589.9,3589.8,10.31207051]
[1754456744722,1e-08,3589.9,3589.8,12.39083926]
[1754456745993,1e-08,3589.9,3589.8,8.14283926]
[1754456746222,1e-08,3589.9,3589.8,12.39083926]
[1754456746716,1e-08,3589.9,3589.8,12.38983926]
[1754456750058,1e-08,3589.9,3589.8,12.38683926]
[1754456751148,6.694,3592.1,3589.8,12.38683926]
[1754456751149,0.5057,3590.9,3590.8,2.78489473]
[1754456751324,0.5057,3590.9,3590.8,10.02789473]
[1754456751518,0.04,3590.9,3590.8,10.16709473]
[1754456751720,1e-08,3590.9,3590.8,10.67279473]
[1754456751916,1e-08,3590.9,3590.8,11.13639473]
[1754456753258,1e-08,3590.9,3590.8,12.6095118]
[1754456753753,1e-08,3590.9,3590.8,12.1038118]
[1754456753954,1e-08,3590.9,3590.8,42.98690406]
[1754456754156,1e-08,3590.9,3590.8,38.74290406]
[1754456754340,0.46570001,3590.9,3590.8,11.7834118]
[1754456754833,0.46570001,3590.9,3590.8,11.6442118]
[1754456755030,1e-08,3590.9,3590.8,11.6442118]
[1754456755230,1e-08,3590.9,3590.8,12.1078118]
[1754456756256,1e-08,3590.9,3590.8,12.4725118]
[1754456756462,1e-08,3590.9,3590.8,43.21540406]
[1754456757266,1e-08,3590.9,3590.8,42.85070406]
[1754456759628,1e-08,3590.9,3590.8,38.60370406]
[1754456759829,1e-08,3590.9,3590.8,42.84770406]
[1754456760130,1e-08,3590.9,3590.8,38.60370406]
[1754456760335,0.46570001,3590.9,3590.8,11.6412118]
[1754456760531,0.04,3591.9,3591.8,2.78411938]
[1754456760737,0.04,3591.9,3591.8,10.02811938]
[1754456760938,0.04,3591.9,3591.8,5.78411938]
[1754456761146,0.04,3591.9,3591.8,10.02811938]
[1754456761549,0.04,3591.9,3591.8,5.78411938]
[1754456761753,0.04,3591.9,3591.8,10.02811938]
[1754456762270,0.04,3591.9,3591.8,5.78411938]
[1754456762445,0.04,3591.9,3591.8,10.02811938]
[1754456762651,0.8147,3591.9,3591.8,10.02811938]
[1754456763167,0.8147,3591.9,3591.8,5.78411938]
[1754456763374,0.8147,3591.9,3591.8,10.02711938]
[1754456764878,0.8147,3591.9,3591.8,5.78411938]
[1754456765065,0.8147,3591.9,3591.8,10.02711938]
[1754456766880,0.8147,3591.9,3591.8,10.02611938]
[1754456768199,0.8147,3591.9,3591.8,3.0]
[1754456768366,0.9539,3591.9,3591.7,5.78414185]
[1754456768680,0.7747,3591.8,3591.6,3.0]
[1754456768977,0.1792,3591.9,3591.7,2.78418214]
[1754456769161,0.1792,3591.9,3591.6,3.0]
[1754456769565,0.4657,3591.8,3591.7,5.78419689]
[1754456769755,0.7747,3591.8,3591.7,5.78419689]
[1754456770746,0.7747,3591.8,3591.7,3.0]
[1754456771079,0.7747,3591.8,3591.1,0.1392]
[1754456771280,33.69811724,3591.7,3591.1,4.239]
[1754456771585,0.1392,3591.2,3590.8,2.78489473]
[1754456771787,0.7747,3591.1,3591.0,5.78471682]
[1754456771975,0.04,3591.9,3591.0,3.0]
[1754456772179,0.04,3591.9,3591.8,2.78411938]
[1754456772569,0.5057,3591.9,3591.8,7.02711938]
[1754456772792,0.5057,3591.9,3591.8,2.78411938]
[1754456772959,0.8147,3591.9,3591.6,5.78427077]
[1754456773159,0.309,3591.8,3591.3,3.0]
[1754456773359,0.35997669,3591.7,3590.9,3.0]
[1754456773806,0.7402,3591.6,3591.2,2.78452624]
[1754456774103,0.7402,3591.5,3591.3,2.78449231]
[1754456774308,0.7402,3591.4,3591.3,3.0]
[1754456774457,0.7402,3591.4,3591.3,5.784507]
[1754456774458,0.4312,3591.4,3591.3,5.784507]
[1754456774960,0.04,3591.9,3591.8,2.78411938]
[1754456775160,0.04,3591.9,3591.8,5.78411938]
[1754456775597,0.04,3591.9,3591.8,6.23751938]
[1754456775959,0.04,3591.9,3591.8,5.78411938]
[1754456776456,4.248,3593.0,3592.1,2.78388686]
[1754456776686,2.78342418,3592.7,3592.1,2.78388686]
[1754456777072,2.78335073,3592.8,3592.1,2.78388686]
[1754456777276,30.0,3592.7,3592.1,2.78388686]
[1754456777824,30.0,3592.7,3591.8,7.248]
[1754456778095,32.78327485,3592.9,3592.3,2.78369448]
[1754456778320,32.72866186,3592.8,3592.2,2.78379202]
[1754456778604,30.0,3592.7,3592.2,2.78379202]
[1754456778771,30.4312,3592.7,3592.2,2.78379202]
[1754456778969,0.4312,3592.6,3592.1,4.247]
[1754456779298,0.4312,3592.5,3592.2,2.78379551]
[1754456779498,0.4312,3592.4,3592.3,2.78372726]
[1754456780076,0.4312,3592.4,3592.2,2.78378855]
[1754456780393,0.4312,3592.4,3592.3,2.78373187]
[1754456780800,0.4312,3592.4,3592.2,2.78379135]
[1754456781202,0.4312,3592.4,3592.3,2.78373187]
[1754456782098,0.4312,3592.8,3592.4,2.78360757]
[1754456782317,30.4312,3592.7,3592.4,2.78360757]
[1754456782620,0.77342941,3592.9,3592.4,2.78360757]
[1754456782772,0.4312,3592.6,3592.1,0.4534]
[1754456782991,0.1392,3592.3,3592.2,2.78375328]
[1754456784223,0.1392,3592.3,3592.2,3.23715328]
[1754456786628,0.1392,3592.3,3592.2,6.23715328]
[1754456786782,4.248,3593.0,3592.2,5.22261065]
[1754456787016,0.1392,3592.5,3592.4,2.78365438]
[1754456787192,2.78280742,3593.5,3592.8,2.78328631]
[1754456787395,4.242,3593.3,3592.8,2.78328631]